bitfinex/quotes_SOLUSD_20241121
["timestamp","ask_amount","ask_price","bid_price","bid_amount"]
[1732191935323,37.9220361,244.3,244.22,37.9220361]
[1732191935516,37.9220361,244.28,244.2,37.9220361]
[1732191935715,4.0923,244.36,244.23,37.9220361]
[1732191935716,37.9220361,244.32,244.23,37.9220361]
[1732191936223,37.9220361,244.32,244.24,4.0943]
[1732191936399,37.9220361,244.32,244.24,14.3301]
[1732191936604,1.5,244.37,244.23,37.9220361]
[1732191936804,37.9220361,244.34,244.25,37.9220361]
[1732191937020,1.5,244.37,244.32,37.9220361]
[1732191937329,1.5,244.37,244.28,37.9220361]
[1732191937707,1.5,244.37,244.27,20.0]
[1732191937708,1.5,244.37,244.3,37.9220361]
[1732191938115,1.5,244.37,244.32,37.9220361]
[1732191938316,1.5,244.37,244.29,20.0]
[1732191938526,37.9220361,244.35,244.26,37.9220361]
[1732191938722,37.9220361,244.33,244.24,37.9220361]
[1732191939030,37.9220361,244.29,244.22,20.0]
[1732191939214,5.5921,244.37,244.24,37.9220361]
[1732191939215,37.9220361,244.31,244.24,37.9220361]
[1732191939415,37.9220361,244.35,244.27,20.0]
[1732191939620,1.5,244.37,244.22,20.0]
[1732191939621,1.5,244.37,244.34,37.9220361]
[1732191940113,5.5921,244.37,244.3,37.9220361]
[1732191940320,37.9220361,244.34,244.24,37.9220361]
[1732191940534,37.9220361,244.32,244.24,37.9220361]
[1732191941023,23.776884,244.33,244.24,37.9220361]
[1732191941597,23.776884,244.33,244.14,10.24]
[1732191941598,23.776884,244.33,244.28,37.9220361]
[1732191942019,23.776884,244.36,244.32,37.9220361]
[1732191942220,4.0924,244.35,244.32,37.9220361]
[1732191942430,1.5,244.37,244.32,37.9220361]
[1732191942431,1.5,244.37,244.35,20.0]
[1732191942631,37.9220361,244.57,244.36,57.9220361]
[1732191942802,4.0889,244.56,244.49,37.9220361]
[1732191943006,4.0889,244.56,244.47,37.9220361]
[1732191944134,23.776884,244.55,244.47,37.9220361]
[1732191944331,4.0889,244.56,244.35,20.0]
[1732191944332,10.2192,244.64,244.49,37.9220361]
[1732191944545,37.9220361,244.6,244.49,37.9220361]
[1732191944923,37.9220361,244.58,244.49,37.9220361]
[1732191945539,37.9220361,244.56,244.47,37.9220361]
[1732191946840,37.9220361,244.56,244.49,37.9220361]
[1732191947235,23.776884,244.57,244.49,37.9220361]
[1732191947438,37.9220361,244.58,244.49,37.9220361]
[1732191948043,37.9220361,244.56,244.47,42.0124361]
[1732191948358,37.9220361,244.52,244.43,37.9220361]
[1732191948538,0.5,244.6,244.45,37.9220361]
[1732191948539,37.9220361,244.54,244.45,37.9220361]
[1732191948730,0.5,244.6,244.42,37.9220361]
[1732191948731,37.9220361,244.51,244.42,37.9220361]
[1732191948930,37.9220361,244.49,244.42,37.9220361]
[1732191950249,4.0899,244.51,244.42,42.0132361]
[1732191950250,37.9220361,244.51,244.42,42.0132361]
[1732191950633,37.9220361,244.51,244.42,37.9220361]
[1732191950830,23.776884,244.48,244.41,10.2287]
[1732191951342,37.9220361,244.45,244.36,37.9220361]
[1732191951541,27.867184,244.48,244.35,10.231]
[1732191951542,37.9220361,244.47,244.38,37.9220361]
[1732191951954,37.9220361,244.49,244.41,37.9220361]
[1732191952364,14.6,244.6,244.41,37.9220361]
[1732191952574,37.9220361,244.54,244.46,37.9220361]
[1732191952752,37.9220361,244.54,244.44,37.9220361]
[1732191952951,37.9220361,244.52,244.44,37.9220361]
[1732191953345,37.9220361,244.52,244.45,4.0908]
[1732191953752,37.9220361,244.54,244.45,4.0908]
[1732191953959,37.9220361,244.5,244.43,4.0911]
[1732191954165,37.9220361,244.5,244.41,4.0914]
[1732191954367,37.9220361,244.5,244.42,37.9220361]
[1732191954949,37.9220361,244.48,244.41,14.3201]
[1732191955574,37.9220361,244.48,244.41,10.2287]
[1732191955761,10.222,244.57,244.39,4.0917]
[1732191955962,37.9220361,244.47,244.39,4.0917]
[1732191956346,27.865784,244.56,244.4,37.9220361]
[1732191956559,37.9220361,244.51,244.42,37.9220361]
[1732191956782,37.9220361,244.47,244.39,14.3212]
[1732191957279,37.9220361,244.49,244.4,37.9220361]
[1732191957664,37.9220361,244.49,244.41,14.3201]
[1732191958169,37.9220361,244.51,244.42,37.9220361]
[1732191958359,0.5,244.63,244.41,14.3201]
[1732191958360,24.0878,244.63,244.46,37.9220361]
[1732191958572,37.9220361,244.53,244.44,37.9220361]
[1732191958761,37.9220361,244.51,244.42,57.9220361]
[1732191959660,37.9220361,244.51,244.43,14.3189]
[1732191960466,38.085284,244.61,244.43,14.3189]
[1732191960680,37.9220361,244.48,244.43,10.2278]
[1732191960902,37.9220361,244.46,244.41,4.0914]
[1732191961392,37.9220361,244.46,244.37,10.23]
[1732191961393,37.9220361,244.44,244.37,10.23]
[1732191961581,37.9220361,244.42,244.35,4.0924]
[1732191961892,37.9220361,244.38,244.32,4.0929]
[1732191962273,37.9220361,244.38,244.3,42.0152361]
[1732191962992,23.776884,244.39,244.32,37.9220361]
[1732191963180,23.776884,244.39,244.3,14.3265]
[1732191963181,37.9220361,244.37,244.3,14.3265]
[1732191963486,23.776884,244.39,244.24,10.2355]
[1732191963487,24.276884,244.39,244.24,10.2355]
[1732191963685,24.276884,244.39,244.22,42.0166361]
[1732191963686,37.9220361,244.29,244.2,37.9220361]
[1732191963889,37.9220361,244.27,244.2,37.9220361]
[1732191964082,23.776884,244.26,244.2,37.9220361]
[1732191964390,37.9220361,244.29,244.2,37.9220361]
[1732191964690,23.776884,244.28,244.2,37.9220361]
[1732191964889,4.0896,244.52,244.27,37.9220361]
[1732191965078,4.0896,244.52,244.23,0.5]
[1732191965079,37.9220361,244.48,244.39,37.9220361]
[1732191965290,37.9220361,244.48,244.41,37.9220361]
[1732191965475,37.9220361,244.5,244.41,37.9220361]
[1732191965789,4.0894,244.54,244.37,37.9220361]
[1732191965790,37.9220361,244.46,244.37,37.9220361]
[1732191966087,37.9220361,244.48,244.39,37.9220361]
[1732191966283,37.9220361,244.5,244.41,37.9220361]
[1732191966866,37.9220361,244.48,244.42,4.0913]
[1732191967296,37.9220361,244.48,244.41,10.2285]
[1732191967469,37.9220361,244.46,244.41,10.2285]
[1732191967667,37.9220361,244.46,244.38,4.0919]
[1732191967886,37.9220361,244.48,244.39,37.9220361]
[1732191968091,4.0897,244.52,244.38,4.0919]
[1732191968092,37.9220361,244.46,244.38,4.0919]
[1732191968304,37.9220361,244.44,244.38,14.3218]
[1732191968601,23.776884,244.39,244.25,12.4414]
[1732191968789,37.9220361,244.4,244.31,37.9220361]
[1732191968993,37.9220361,244.4,244.31,4.0931]
[1732191969178,37.9220361,244.38,244.31,4.0931]
[1732191969580,37.9220361,244.38,244.31,14.326]
[1732191970095,0.5,244.51,244.31,14.326]
[1732191970096,10.2164,244.71,244.38,66.4011]
[1732191970298,37.9220361,244.53,244.44,37.9220361]
[1732191970503,37.9220361,244.51,244.42,37.9220361]
[1732191971097,37.9220361,244.51,244.38,46.4011]
[1732191971098,37.9220361,244.49,244.4,37.9220361]
[1732191971595,37.9220361,244.53,244.42,37.9220361]
[1732191972177,37.9220361,244.51,244.42,37.9220361]
[1732191972374,37.9220361,244.49,244.43,14.3189]
[1732191972790,37.9220361,244.51,244.43,14.3189]
[1732191972991,37.9220361,244.53,244.43,14.3189]
[1732191973298,37.9220361,244.53,244.44,37.9220361]
[1732191973474,37.9220361,244.53,244.43,14.3189]
[1732191973675,37.9220361,244.51,244.43,14.3189]
[1732191974297,37.9220361,244.51,244.43,34.7746]
[1732191975231,37.9220361,244.53,244.44,37.9220361]
[1732191976031,37.9220361,244.52,244.43,34.7746]
[1732191976203,37.9220361,244.5,244.43,34.7746]
[1732191976609,37.9220361,244.54,244.45,37.9220361]
[1732191977127,37.9220361,244.54,244.43,34.7746]
[1732191977128,61.6989201,244.58,244.49,37.9220361]
[1732191977331,0.5,244.69,244.53,37.9220361]
[1732191977506,37.9220361,244.6,244.51,37.9220361]
[1732191978032,37.9220361,244.68,244.43,34.7746]
[1732191978033,37.9220361,244.58,244.49,37.9220361]
[1732191978349,37.9220361,244.58,244.5,14.3148]
[1732191979602,37.9220361,244.6,244.51,37.9220361]
[1732191979804,37.9220361,244.58,244.5,14.3148]
[1732191980421,37.9220361,244.55,244.5,10.2249]
[1732191982019,37.9220361,244.57,244.48,37.9220361]
[1732191982943,37.9220361,244.59,244.5,37.9220361]
[1732191985218,37.9220361,244.61,244.52,37.9220361]
[1732191985621,37.9220361,244.63,244.54,37.9220361]
[1732191986368,37.9220361,244.67,244.58,37.9220361]
[1732191986516,37.9220361,244.69,244.6,37.9220361]
[1732191986721,37.9220361,244.69,244.62,37.9220361]
[1732191986935,37.9220361,244.69,244.6,37.9220361]
[1732191987131,37.9220361,244.66,244.56,37.9220361]
[1732191987350,37.9220361,244.66,244.57,14.3108]
[1732191988440,37.9220361,244.66,244.58,37.9220361]
[1732191988827,37.9220361,244.64,244.57,14.3108]
[1732191989833,37.9220361,244.58,244.57,10.222]
[1732191990254,37.9220361,244.58,244.52,10.2239]
[1732191990544,37.9220361,244.53,244.52,10.2239]
[1732191990737,37.9220361,244.53,244.49,4.0901]
[1732191991051,37.9220361,244.51,244.49,4.0901]
[1732191991454,37.9220361,244.51,244.44,20.4549]
[1732191991627,37.9220361,244.49,244.43,14.3189]
[1732191992250,37.9220361,244.47,244.43,14.3189]
[1732191992544,37.9220361,244.45,244.43,14.3189]
[1732191992725,37.9220361,244.45,244.41,4.0914]
[1732191993364,4.0891,244.55,244.41,10.2287]
[1732191993365,37.9220361,244.47,244.41,10.2287]
[1732191993543,37.9220361,244.45,244.41,10.2287]
[1732191993733,37.9220361,244.43,244.41,10.2287]
[1732191993933,37.9220361,244.45,244.41,10.2287]
[1732191994336,37.9220361,244.47,244.41,10.2287]
[1732191994868,37.9220361,244.43,244.39,14.3213]
[1732191995156,37.9220361,244.41,244.32,58.3867361]
[1732191995327,37.9220361,244.39,244.34,10.2315]
[1732191995523,37.9220361,244.37,244.34,10.2315]
[1732191996149,37.9220361,244.39,244.34,10.2315]
[1732191996358,37.9220361,244.46,244.37,37.9220361]
[1732191996729,37.9220361,244.48,244.41,37.9220361]
[1732191997125,37.9220361,244.48,244.39,37.9220361]
[1732191997329,37.9220361,244.5,244.41,37.9220361]
[1732191997554,37.9220361,244.48,244.39,37.9220361]
[1732191997932,37.9220361,244.46,244.37,37.9220361]
[1732191998145,37.9220361,244.5,244.41,37.9220361]
[1732191998549,37.9220361,244.5,244.43,37.9220361]
[1732191998744,12.6003,244.59,244.45,37.9220361]
[1732191998745,37.9220361,244.52,244.45,37.9220361]
[1732191998956,37.9220361,244.52,244.43,37.9220361]
[1732191999157,73.8356772,244.68,244.49,37.9220361]
[1732191999158,37.9220361,244.58,244.49,37.9220361]
[1732191999679,37.9220361,244.54,244.5,14.3148]
[1732191999959,37.9220361,244.51,244.5,14.3148]
[1732192000330,0.5,244.67,244.5,34.7646]
[1732192000331,37.9220361,244.6,244.5,34.7646]
[1732192000554,37.9220361,244.6,244.51,37.9220361]
[1732192001258,37.9220361,244.62,244.53,37.9220361]
[1732192001562,37.9220361,244.62,244.54,14.3125]
[1732192001764,37.9220361,244.6,244.54,14.3125]
[1732192002564,37.9220361,244.6,244.54,10.2232]
[1732192002750,37.9220361,244.62,244.54,10.2232]
[1732192002935,37.9220361,244.58,244.54,10.2232]
[1732192003554,37.9220361,244.6,244.54,10.2232]
[1732192004070,37.9220361,244.58,244.49,72.6880361]
[1732192004466,37.9220361,244.6,244.51,37.9220361]
[1732192005264,37.9220361,244.56,244.49,34.766]
[1732192005646,37.9220361,244.58,244.49,72.6880361]
[1732192005856,37.9220361,244.56,244.49,34.766]
[1732192006061,37.9220361,244.58,244.49,72.6880361]
[1732192006663,10.31411429,244.75,244.52,23.09007354]
[1732192006872,23.09007354,244.61,244.52,23.09007354]
[1732192007044,23.09007354,244.58,244.49,34.766]
[1732192007240,23.09007354,244.58,244.5,23.09007354]
[1732192007440,23.09007354,244.58,244.49,34.766]
[1732192008041,23.09007354,244.58,244.5,0.93485246]
[1732192009077,23.09007354,244.6,244.5,24.024926]
[1732192009248,23.09007354,244.58,244.5,24.024926]
[1732192009745,23.09007354,244.58,244.51,14.3143]
[1732192010249,23.09007354,244.6,244.51,14.3143]
[1732192010564,23.09007354,244.58,244.51,14.3143]
[1732192010752,23.09007354,244.56,244.51,34.7633]
[1732192011868,23.09007354,244.54,244.51,14.3143]
[1732192012288,23.09007354,244.56,244.51,14.3143]
[1732192012886,23.09007354,244.56,244.51,10.2245]
[1732192014189,23.09007354,244.58,244.51,10.2245]
[1732192014366,23.09007354,244.6,244.51,33.31457354]
[1732192014980,23.09007354,244.6,244.51,57.85337354]
[1732192015594,23.09007354,244.58,244.51,34.7633]
[1732192015800,23.09007354,244.56,244.51,34.7633]
[1732192015974,23.09007354,244.58,244.51,34.7633]
[1732192016375,23.06407354,244.58,244.51,34.2633]
[1732192017482,23.09007354,244.56,244.51,34.2633]
[1732192017990,4.0875,244.65,244.51,34.2633]
[1732192017991,23.09007354,244.54,244.51,34.2633]
[1732192018508,23.09007354,244.52,244.51,9.7245]
[1732192018673,23.09007354,244.52,244.43,13.3133]
[1732192018879,23.09007354,244.47,244.46,10.2265]
[1732192019790,27.17907354,244.56,244.46,10.2265]
[1732192019791,23.09007354,244.49,244.46,10.2265]
[1732192019975,23.09007354,244.51,244.46,10.2265]
[1732192020194,23.09007354,244.55,244.47,23.09007354]
[1732192020398,23.09007354,244.57,244.49,23.09007354]
[1732192020693,23.09007354,244.57,244.46,10.2265]
[1732192020694,23.09007354,244.55,244.47,23.09007354]
[1732192020993,23.09007354,244.57,244.48,14.316]
[1732192021194,23.09007354,244.55,244.48,14.316]
[1732192021899,23.09007354,244.57,244.49,23.09007354]
[1732192022103,23.09007354,244.6,244.51,23.09007354]
[1732192022473,23.09007354,244.58,244.5,14.3148]
[1732192022778,23.09007354,244.6,244.5,14.3148]
[1732192023168,23.09007354,244.6,244.5,34.7646]
[1732192023390,6.22831429,244.7,244.53,23.09007354]
[1732192023594,23.09007354,244.63,244.53,23.09007354]
[1732192024185,23.09007354,244.61,244.53,23.09007354]
[1732192024387,23.09007354,244.59,244.54,14.3125]
[1732192024787,23.09007354,244.61,244.54,14.3125]
[1732192025502,23.09007354,244.65,244.55,23.09007354]
[1732192026276,23.09007354,244.65,244.56,34.3113]
[1732192026480,23.09007354,244.65,244.56,54.7561]
[1732192027291,23.09007354,244.65,244.57,23.09007354]
[1732192028194,4.0857,244.76,244.59,23.09007354]
[1732192028195,23.09007354,244.68,244.59,23.09007354]
[1732192028397,23.09007354,244.66,244.58,14.3102]
[1732192028603,23.09007354,244.64,244.58,14.3102]
[1732192028802,23.09007354,244.66,244.58,14.3102]
[1732192029494,23.09007354,244.68,244.58,34.7534]
[1732192029700,23.09007354,244.66,244.58,34.7534]
[1732192030209,23.09007354,244.69,244.6,23.09007354]
[1732192030506,23.09007354,244.67,244.58,57.84347354]
[1732192030884,23.09007354,244.67,244.59,20.0]
[1732192031080,23.09007354,244.73,244.65,23.09007354]
[1732192031280,6.22831429,244.82,244.59,20.0]
[1732192031281,23.09007354,244.77,244.68,23.09007354]
[1732192031503,23.09007354,244.71,244.67,14.3049]
[1732192032602,23.09007354,244.71,244.67,10.2178]
[1732192033008,23.09007354,244.73,244.67,10.2178]
[1732192033308,23.09007354,244.75,244.67,10.2178]
[1732192033998,0.2994,244.83,244.74,20.0]
[1732192034298,0.2994,244.83,244.72,23.09007354]
[1732192034299,23.09007354,244.82,244.72,23.09007354]
[1732192034607,23.09007354,244.82,244.73,14.3014]
[1732192035138,23.09007354,244.82,244.73,34.732]
[1732192035305,23.09007354,244.77,244.73,14.3014]
[1732192035803,23.09007354,244.75,244.73,14.3014]
[1732192036502,23.09007354,244.75,244.65,20.4373]
[1732192036702,23.09007354,244.73,244.65,20.4373]
[1732192037305,23.09007354,244.71,244.65,20.4373]
[1732192037633,23.09007354,244.71,244.64,14.3066]
[1732192037634,23.09007354,244.67,244.64,14.3066]
[1732192038226,23.09007354,244.69,244.64,34.7447]
[1732192038525,27.17507354,244.8,244.64,34.7447]
[1732192038526,23.09007354,244.67,244.64,30.6571]
[1732192038725,23.09007354,244.69,244.64,30.6571]
[1732192039132,23.09007354,244.69,244.64,10.219]
[1732192041139,23.09007354,244.67,244.64,10.219]
[1732192041450,23.09007354,244.65,244.64,10.219]
[1732192042248,23.09007354,244.67,244.64,10.219]
[1732192042424,23.09007354,244.67,244.57,23.09007354]
[1732192042626,23.09007354,244.67,244.58,14.3102]
[1732192043034,23.09007354,244.67,244.59,23.09007354]
[1732192043229,23.09007354,244.65,244.58,14.3102]
[1732192043440,23.09007354,244.67,244.59,23.09007354]
[1732192043634,23.09007354,244.69,244.59,23.09007354]
[1732192044353,23.09007354,244.69,244.6,14.309]
[1732192045451,23.09007354,244.69,244.6,34.7505]
[1732192046037,23.09007354,244.71,244.61,23.09007354]
[1732192046350,23.09007354,244.73,244.64,34.7447]
[1732192046659,24.57,244.98,244.7,0.5]
[1732192046822,24.57,244.98,244.69,0.5]
[1732192046823,23.09007354,244.76,244.69,0.5]
[1732192047022,23.09007354,244.76,244.7,0.5]
[1732192047440,23.09007354,244.76,244.72,0.5]
[1732192047757,3.41588792,244.88,244.71,10.2158]
[1732192047758,23.09007354,244.74,244.71,10.2158]
[1732192048339,22.09007354,244.74,244.66,1.0]
[1732192048549,23.09007354,244.72,244.68,4.0868]
[1732192048934,23.776884,244.78,244.67,14.8049]
[1732192048935,23.776884,244.73,244.67,14.8049]
[1732192049258,23.09007354,244.74,244.67,14.8049]
[1732192049565,23.09007354,244.76,244.69,0.5]
[1732192049764,23.09007354,244.74,244.68,10.2174]
[1732192049947,23.09007354,244.72,244.68,10.2174]
[1732192050937,23.09007354,244.72,244.64,21.4381]
[1732192050938,23.776884,244.69,244.64,14.8065]
[1732192051142,23.776884,244.69,244.64,15.3065]
[1732192051350,23.776884,244.69,244.64,10.719]
[1732192051666,23.776884,244.65,244.59,10.2209]
[1732192051961,23.09007354,244.64,244.59,10.2209]
[1732192052162,23.776884,244.59,244.54,10.2229]
[1732192052574,23.776884,244.55,244.49,10.2251]
[1732192052743,14.43948884,244.57,244.51,0.5]
[1732192053359,23.776884,244.58,244.53,1.0]
[1732192053637,23.776884,244.62,244.54,14.43948884]
[1732192053844,58.21637284,244.54,244.32,14.43948884]
[1732192054048,14.43948884,244.43,244.37,4.0921]
[1732192054254,23.776884,244.42,244.37,4.0921]
[1732192054646,23.776884,244.42,244.3,13.0522]
[1732192054647,23.776884,244.4,244.32,0.5]
[1732192054861,23.776884,244.4,244.32,4.5928]
[1732192055043,23.776884,244.4,244.32,14.8252]
[1732192055470,5.47662493,244.45,244.38,23.62871706]
[1732192055772,23.776884,244.44,244.37,4.0921]
[1732192056750,23.776884,244.42,244.35,14.3236]
[1732192057156,23.776884,244.42,244.36,0.5]
[1732192057763,23.776884,244.42,244.35,14.3236]
[1732192057985,23.12871706,244.41,244.35,14.3236]
[1732192058158,23.12871706,244.39,244.35,10.2312]
[1732192058357,23.12871706,244.37,244.35,10.2312]
[1732192058587,23.776884,244.36,244.3,4.0932]
[1732192058880,42.3353,244.7,244.52,0.5]
[1732192059183,23.12871706,244.67,244.58,0.5]
[1732192059484,4.0858,244.75,244.62,0.5]
[1732192059688,23.12871706,244.78,244.68,0.5]
[1732192059982,12.12,244.85,244.69,23.12871706]
[1732192059983,23.12871706,244.8,244.69,23.12871706]
[1732192060362,23.12871706,244.8,244.71,23.12871706]
[1732192060561,23.12871706,244.8,244.69,23.12871706]
[1732192060882,12.12,244.85,244.65,33.34711706]
[1732192060883,23.12871706,244.76,244.65,33.34711706]
[1732192061085,27.63109284,244.74,244.65,10.2184]
[1732192061259,0.41647578,244.74,244.66,0.5]
[1732192061459,0.41647578,244.74,244.65,37.43451706]
[1732192061761,0.41647578,244.74,244.65,33.34711706]
[1732192061961,23.54519284,244.74,244.66,0.5]
[1732192062157,23.54519284,244.74,244.65,33.34711706]
[1732192062382,23.54519284,244.74,244.66,0.5]
[1732192062586,23.54519284,244.74,244.65,33.34711706]
[1732192062794,23.54519284,244.74,244.66,0.5]
[1732192062961,23.776884,244.73,244.66,0.5]
[1732192063176,23.54519284,244.74,244.66,0.5]
[1732192063364,0.41647578,244.74,244.66,0.5]
[1732192063902,0.41647578,244.74,244.65,33.34711706]
[1732192064110,23.12871706,244.7,244.61,0.5]
[1732192064273,23.776884,244.71,244.61,23.62871706]
[1732192064785,23.12871706,244.7,244.61,23.62871706]
[1732192064990,27.21571706,244.68,244.61,0.5]
[1732192065189,23.12871706,244.66,244.58,23.62871706]
[1732192065398,23.776884,244.71,244.64,23.12871706]
[1732192065565,23.54519284,244.74,244.65,0.5]
[1732192065767,23.54519284,244.74,244.66,0.5]
[1732192066002,23.54519284,244.74,244.66,23.62871706]
[1732192066371,0.41647578,244.74,244.68,0.5]
[1732192066804,0.41647578,244.74,244.69,0.5]
[1732192067292,0.41647578,244.74,244.7,23.62871706]
[1732192067495,0.41647578,244.74,244.73,1.0]
[1732192068587,0.41647578,244.74,244.73,0.5]
[1732192068989,0.41647578,244.74,244.73,1.0]
[1732192069384,0.41647578,244.74,244.73,0.5]
[1732192069697,0.41647578,244.74,244.69,10.217]
[1732192069698,0.41647578,244.74,244.7,0.5]
[1732192069875,0.41647578,244.74,244.73,23.12871706]
[1732192070991,0.41647578,244.74,244.72,1.0]
[1732192070992,0.41647578,244.74,244.72,0.5]
[1732192071391,23.776884,244.72,244.63,0.5]
[1732192071591,23.12871706,244.68,244.63,1.0]
[1732192071888,23.12871706,244.68,244.56,23.388]
[1732192071889,0.41647578,244.74,244.68,0.5]
[1732192072094,0.41647578,244.74,244.7,23.62871706]
[1732192072310,0.41647578,244.74,244.72,23.62871706]
[1732192072485,0.41647578,244.74,244.73,0.5]
[1732192073511,0.41647578,244.74,244.73,4.5861]
[1732192074191,33.1156,245.09,244.91,0.5]
[1732192074389,33.1156,245.09,244.95,0.5]
[1732192074390,23.12871706,244.96,244.95,0.5]
[1732192074600,23.12871706,244.96,244.94,0.5]
[1732192074838,23.12871706,244.96,244.93,0.5]
[1732192075119,23.12871706,244.94,244.93,0.5]
[1732192075289,23.12871706,244.94,244.89,12.8311]
[1732192075495,23.12871706,244.9,244.86,4.0838]
[1732192075800,23.12871706,244.88,244.84,10.2105]
[1732192076008,23.12871706,244.92,244.8,4.0849]
[1732192076009,23.12871706,244.85,244.8,4.0849]
[1732192076192,27.21171706,244.92,244.8,4.5849]
[1732192076193,23.12871706,244.81,244.8,4.5849]
[1732192076393,23.12871706,244.83,244.82,0.5]
[1732192076615,23.12871706,244.85,244.82,0.5]
[1732192076898,23.12871706,244.92,244.83,0.5]
[1732192077106,23.12871706,244.85,244.84,0.5]
[1732192077310,23.12871706,244.85,244.81,0.5]
[1732192077493,23.12871706,244.82,244.8,10.2124]
[1732192077708,23.12871706,244.82,244.78,4.5851]
[1732192078015,23.12871706,244.85,244.84,0.5]
[1732192078222,4.0819,244.98,244.84,0.5]
[1732192078421,4.0807,245.05,244.89,0.5]
[1732192078594,2.80177581,245.04,244.92,0.5]
[1732192078796,23.12871706,244.92,244.9,0.5]
[1732192079627,23.12871706,244.92,244.91,4.0831]
[1732192080033,23.12871706,244.92,244.91,16.8964]
[1732192080819,4.86076516,245.06,244.93,0.5]
[1732192081004,23.12871706,245.04,244.94,0.5]
[1732192081204,2.80085579,245.03,244.91,12.8133]
[1732192081522,4.0812,245.02,244.91,0.5]
[1732192081727,23.12871706,244.92,244.91,0.5]
[1732192082514,4.0809,245.04,244.94,0.5]
[1732192082825,46.25743412,244.95,244.9,4.5832]
[1732192083012,0.5,245.06,244.96,0.5]
[1732192083209,2.79927841,245.05,244.98,0.5]
[1732192083435,2.79927841,245.05,244.96,0.5]
[1732192083611,23.12871706,244.97,244.96,0.5]
[1732192083804,23.12871706,244.97,244.93,0.5]
[1732192084121,23.12871706,244.94,244.93,0.5]
[1732192084334,23.12871706,244.94,244.93,4.5827]
[1732192084636,23.12871706,244.94,244.93,0.5]
[1732192084930,23.12871706,244.94,244.91,0.5]
[1732192085108,23.12871706,245.04,244.91,0.5]
[1732192085109,23.12871706,244.92,244.91,0.5]
[1732192085304,4.0808,245.05,244.91,0.5]
[1732192085630,23.12871706,244.94,244.93,0.5]
[1732192085837,0.5,245.06,244.97,0.5]
[1732192086126,0.5,245.06,244.98,0.5]
[1732192086127,23.12871706,245.04,244.98,0.5]
[1732192086324,23.12871706,244.99,244.98,0.5]
[1732192086707,23.12871706,244.99,244.92,4.0829]
[1732192086898,23.12871706,244.93,244.92,4.0829]
[1732192087109,23.12871706,244.95,244.94,0.5]
[1732192087328,23.12871706,244.95,244.92,4.5829]
[1732192087628,23.12871706,244.95,244.94,0.5]
[1732192088429,4.0807,245.05,244.97,0.5]
[1732192088636,23.12871706,244.98,244.97,0.5]
[1732192089327,0.5,245.06,244.97,0.5]
[1732192089529,23.12871706,244.98,244.97,0.5]
[1732192089829,22.62871706,244.98,244.94,0.5]
[1732192090036,23.12871706,244.95,244.94,4.5826]
[1732192090332,23.12871706,244.97,244.96,0.5]
[1732192090832,23.12871706,244.97,244.94,14.7891]
[1732192091034,23.12871706,245.04,244.94,10.7065]
[1732192091035,23.12871706,244.95,244.94,10.7065]
[1732192091224,23.12871706,244.97,244.96,0.5]
[1732192091534,0.5,245.06,245.0,0.5]
[1732192091707,23.12871706,245.01,245.0,0.5]
[1732192092126,23.12871706,245.01,244.99,4.0816]
[1732192092127,23.12871706,245.01,244.97,4.5821]
[1732192092432,23.12871706,244.98,244.97,4.5821]
[1732192093212,23.12871706,244.98,244.9,0.5]
[1732192093530,23.12871706,244.93,244.92,0.5]
[1732192095735,0.5,245.06,244.92,0.5]
[1732192095915,23.12871706,244.94,244.91,0.5]
[1732192096110,23.12871706,244.96,244.95,0.5]
[1732192096315,23.12871706,244.96,244.88,14.2926]
[1732192097320,23.12871706,244.94,244.88,10.209]
[1732192097741,0.5,245.06,244.88,10.209]
[1732192097939,23.12871706,244.98,244.89,23.12871706]
[1732192098348,23.12871706,244.96,244.88,10.209]
[1732192098832,23.12871706,244.94,244.88,10.209]
[1732192099136,23.12871706,244.96,244.88,10.209]
[1732192099324,23.12871706,244.96,244.88,14.2926]
[1732192100517,23.12871706,244.94,244.88,14.2926]
[1732192100722,4.0811,245.03,244.88,14.2926]
[1732192100723,23.12871706,244.92,244.88,14.2926]
[1732192101524,23.12871706,244.92,244.88,10.209]
[1732192101734,23.12871706,244.94,244.88,10.209]
[1732192102234,23.12871706,244.96,244.88,10.209]